[Event "4NCL 2023-2024"]
[Site "Daventry"]
[Date "2024.05.05"]
[Round "10.34"]
[White "Fernandez, Daniel Howard"]
[Black "Macak, Stefan"]
[Result "1/2-1/2"]
[ECO "B53"]
[WhiteElo "2526"]
[BlackElo "2330"]
[Annotator "TA"]
[PlyCount "93"]
[EventDate "2023.11.11"]
[EventType "team-tourn"]
[EventCountry "ENG"]
[SourceTitle "playchess.com"]
[Source "ChessBase"]
[SourceQuality "1"]
[TimeControl "40/6000+30:3000+30"]

{[%evp 11,93,18,12,10,21,11,17,19,23,20,23,0,9,-54,17,36,36,41,33,45,31,28,22,26,29,30,49,16,57,57,43,31,48,35,59,48,67,14,30,0,0,0,0,0,0,0,0,0,0,0,0,0,0,0,0,0,0,0,0,0,8,0,0,0,0,0,0,0,0,0,0,0,0,0,0,0,0,0,0,-20,-28,-111,-111,-108]} 1. e4 {[%emt 0:07:54]} c5 {[%emt 0:00:12]} 2. Nf3 {[%emt 0:01:17]} d6 {[%emt 0:00:12]} 3. d4 {[%emt 0:00:02]} cxd4 {[%emt 0:00:08]} 4. Qxd4 {[%emt 0:00:06]} Nc6 {[%emt 0:00:12]} 5. Bb5 {[%emt 0:00:04]} Bd7 {[%emt 0:00:47]} 6. Qd3 {[%emt 0:00:12]} g6 {[%emt 0:11:01]} 7. c4 {[%emt 0:00:17]} Bg7 {[%emt 0:02:22]} 8. Nc3 {[%emt 0:00:05]} Nf6 {[%emt 0:02:13]} 9. O-O {[%emt 0:00:05] The position is equal.} O-O {[%emt 0:01:29]} 10. h3 {[%emt 0:00:07]} a6 {[%emt 0:05:20] [#] And now ...Nb4 would win.} 11. Ba4 {[%emt 0:09:07]} Rc8 {[%emt 0:04:09]} 12. Bf4 {[%emt 0:05:47]} ({Better is} 12. Bd2 $11) 12... Be6 {[%emt 0:16:14]} ({Black should play} 12... Na5 $1 $15 13. Bb3 Be6) 13. Bxc6 $1 $11 {[%emt 0:03:57]} bxc6 {[%emt 0:04:12]} 14. Rad1 {[%emt 0:01:37]} Nd7 {[%emt 0:07:40]} 15. b3 {[%emt 0:00:31]} Qa5 {[%emt 0:23:25]} 16. Na4 {[%emt 0:23:34]} Nc5 {[%emt 0:06:19]} 17. Nxc5 {[%emt 0:02:03]} Qxc5 {[%emt 0:00:13]} 18. Be3 {[%emt 0:01:49]} Qa3 {[%emt 0:02:02]} 19. Bd4 {[%emt 0:00:26]} a5 {[%emt 0:07:02]} 20. Bxg7 {[%emt 0:03:27]} (20. Ng5 {is more complex.} Bxd4 21. Qxd4 a4 22. e5) 20... Kxg7 {[%emt 0:00:05]} 21. Nd4 {[%emt 0:00:19]} Qc5 {[%emt 0:07:47]} 22. Qe3 {[%emt 0:07:00]} Kg8 {[%emt 0:01:48][%cal Oa5a4]} 23. Rfe1 {[%emt 0:01:00]} Rfd8 {[%emt 0:01:46]} 24. h4 {[%emt 0:03:35] White is more active.} (24. Qh6 $14) 24... a4 {[%emt 0:00:57]} 25. f3 {[%emt 0:07:46]} ({Much worse is} 25. bxa4 Bxc4 26. Qh6 Bxa2 $15) 25... Qh5 {[%emt 0:00:53]} 26. Qg5 {[%emt 0:12:50]} Qxg5 {[%emt 0:01:06]} 27. hxg5 {[%emt 0:00:02]} c5 {[%emt 0:01:11]} 28. Ne2 {[%emt 0:01:09]} (28. Nxe6 fxe6 29. f4 (29. bxa4 e5 $11) 29... Kg7) 28... Ra8 {[%emt 0:03:45]} 29. Nf4 {[%emt 0:00:16]} axb3 {[%emt 0:00:00]} 30. axb3 {[%emt 0:00:03]} Ra3 {[%emt 0:00:23]} 31. Rd3 {[%emt 0:02:00]} Rb8 {[%emt 0:00:09]} 32. Ree3 {[%emt 0:02:24]} Kf8 {[%emt 0:00:28]} 33. e5 {[%emt 0:04:56]} dxe5 {[%emt 0:00:05]} 34. Nxe6+ {[%emt 0:00:07]} fxe6 {[%emt 0:00:01][%mdl 4096] Endgame. KRR-KRR} 35. Kh2 {[%emt 0:00:25]} Kf7 {[%emt 0:00:46]} 36. Kg3 {[%emt 0:01:05]} ({Much less strong is} 36. Rxe5 $6 Rbxb3 37. Rxb3 Rxb3 $16) 36... e4 {[%emt 0:00:56]} 37. fxe4 {[%emt 0:00:19]} e5 {[%emt 0:00:18]} 38. Kg4 {[%emt 0:00:23]} Ra2 {[%emt 0:01:13]} 39. g3 {[%emt 0:00:01]} Rb2 {[%emt 0:00:37]} 40. Rd5 {[%emt 0:02:50]} Ke6 {[%emt 0:00:23]} 41. Rdd3 {[%emt 0:53:21]} Rb1 {[%emt 0:02:39]} 42. Kh3 {[%emt 0:00:00]} Rb2 {[%emt 0:01:03]} 43. Rf3 {[%emt 0:00:00]} Re2 {[%emt 0:04:03]} 44. Rde3 {[%emt 0:00:00]} Rb2 {[%emt 0:00:40]} 45. g4 {[%emt 0:00:00]} Ra8 {[%emt 0:05:34]} 46. Kh4 {[%emt 0:00:00]} (46. Re1 $11 {remains equal.}) 46... Ra1 $17 {[%emt 0:04:06]} 47. Rh3 {[%emt 0:00:00] Weighted Error Value: White=0.11 (very precise) /Black=0.07 (flawless) .  Mistake:       	White=3     	Black=1      Inaccurate:     	White=2     	Black=1      OK:         	White=15    	Black=16     Best:        	---       	Black=1      Strong:       	White=1     	---} 1/2-1/2

[Event "4NCL 2023-2024"]
[Site "Daventry"]
[Date "2024.05.05"]
[Round "10.35"]
[White "Rocco, Federico"]
[Black "Ghasi, Ameet K"]
[Result "0-1"]
[ECO "B12"]
[WhiteElo "2163"]
[BlackElo "2491"]
[Annotator "TA"]
[PlyCount "74"]
[EventDate "2023.11.11"]
[EventType "team-tourn"]
[EventCountry "ENG"]
[SourceTitle "playchess.com"]
[Source "ChessBase"]
[SourceQuality "1"]
[TimeControl "40/6000+30:3000+30"]

{[%evp 10,74,29,11,45,-40,-47,-52,-49,-40,-46,-46,-47,-56,-45,-70,-81,-87,-84,-88,-77,-79,-57,-67,-67,-59,-50,-54,-60,-56,-58,-58,-49,-73,-50,-85,-85,-86,-85,-88,-86,-93,-77,-110,-81,-82,-92,-90,-85,-78,-57,-47,-49,-77,-82,-88,-67,-64,-58,-80,-80,-80,-18,-28,-28,-29981,-29982]} 1. e4 {[%emt 0:04:14]} c6 {[%emt 0:01:59]} 2. d4 {[%emt 0:00:11]} d5 {[%emt 0:00:19]} 3. e5 {[%emt 0:00:24]} c5 {[%emt 0:00:58]} 4. dxc5 {[%emt 0:00:07]} Nc6 {[%emt 0:00:08]} 5. Nf3 {[%emt 0:00:57]} Bg4 {[%emt 0:01:58]} 6. Bb5 {[%emt 0:03:42]} e6 {[%emt 0:05:23]} 7. h3 {[%emt 0:04:23]} (7. b4 $14) 7... Bxf3 $15 {[%emt 0:11:14]} 8. Qxf3 {[%emt 0:01:43]} Qa5+ {[%emt 0:06:15] Black is slightly better.} 9. Nc3 {[%emt 0:00:20]} Bxc5 {[%emt 0:00:11]} 10. Bd2 {[%emt 0:04:53][%cal Oc3d5] [#] aiming for Nxd5!} Qc7 {[%emt 0:08:23]} 11. O-O {[%emt 0:11:16]} Nge7 {[%emt 0:04:41]} 12. Rfe1 {[%emt 0:12:30]} O-O {[%emt 0:05:16]} 13. Bxc6 {[%emt 0:02:53]} Qxc6 {[%emt 0:13:18]} 14. Nd1 {[%emt 0:12:30]} Rac8 {[%emt 0:10:04]} 15. c3 {[%emt 0:05:02]} b5 {[%emt 0:01:55]} 16. Qg4 {[%emt 0:06:50]} Nf5 {[%emt 0:04:18]} 17. Ne3 {[%emt 0:04:00]} Bxe3 {[%emt 0:00:45]} 18. Bxe3 {[%emt 0:00:08]} a5 {[%emt 0:00:05]} 19. a3 {[%emt 0:11:15]} Qb7 {[%emt 0:02:57]} 20. Qe2 {[%emt 0:04:24]} Rc4 {[%emt 0:00:47]} 21. Qd3 {[%emt 0:02:28]} Rfc8 {[%emt 0:12:03]} 22. Rac1 {[%emt 0:01:47]} b4 {[%emt 0:04:57]} 23. cxb4 {[%emt 0:01:51]} axb4 {[%emt 0:00:17]} 24. Bd2 {[%emt 0:02:22]} bxa3 {[%emt 0:01:03]} 25. bxa3 {[%emt 0:01:30]} h5 {[%emt 0:01:11]} 26. Qb1 {[%emt 0:03:00]} Qa7 {[%emt 0:01:50]} (26... Qxb1 {simplifies} 27. Rxb1 Nd4 28. Bb4 Rc2) 27. Bb4 {[%emt 0:00:55]} Ng3 {[%emt 0:06:19] Black is more active.} 28. Rxc4 {[%emt 0:01:56]} Rxc4 {[%emt 0:00:10]} 29. Qd3 {[%emt 0:01:56]} Nf5 {[%emt 0:01:04]} 30. Qd2 {[%emt 0:01:22]} Qc7 {[%emt 0:00:24]} 31. Qg5 {[%emt 0:00:55]} h4 {[%emt 0:00:27]} 32. Qd2 {[%emt 0:00:37]} Rc2 {[%emt 0:03:23]} 33. Qd3 {[%emt 0:00:31]} Qc6 {[%emt 0:00:06]} 34. Re2 {[%emt 0:00:47]} Rc4 {[%emt 0:00:38]} 35. Re1 {[%emt 0:00:32]} d4 {[%emt 0:00:14]} (35... Qa4 $17) 36. Rd1 {[%emt 0:01:01]} Rc2 {[%emt 0:01:27][%cal Of5e3] ( -> ...Ne3!)} 37. Ra1 $2 {[%emt 0:01:04][%mdl 8192] [#]} (37. Rd2 $11 Rc4 38. Rd1) 37... Ne3 $1 {[%emt 0:00:57][%mdl 512] Weighted Error Value: White=0.27 (precise) /Black=0.10 (very precise) .  Loses game:     	White=1     	---        Mistake:       	White=1     	Black=1      Inaccurate:     	White=3     	---        OK:         	White=10    	Black=11     Best:        	White=2     	Black=2      Brilliant:      	---       	Black=1} 0-1

[Event "4NCL 2023-2024"]
[Site "Daventry"]
[Date "2024.05.05"]
[Round "10.36"]
[White "Moreby, James"]
[Black "Villiers, Thomas"]
[Result "0-1"]
[ECO "A14"]
[WhiteElo "2246"]
[BlackElo "2232"]
[Annotator "RC"]
[PlyCount "136"]
[EventDate "2023.11.11"]
[EventType "team-tourn"]
[EventCountry "ENG"]
[SourceTitle "playchess.com"]
[Source "ChessBase"]
[SourceQuality "1"]
[TimeControl "40/6000+30:3000+30"]

1. Nf3 {[%emt 0:00:05]} e6 {[%emt 0:08:46]} 2. g3 {[%emt 0:01:21]} d5 {[%emt 0:00:33]} 3. Bg2 {[%emt 0:02:00]} Nf6 {[%emt 0:00:34]} 4. c4 {[%emt 0:00:53]} Be7 {[%emt 0:01:24]} 5. O-O {[%emt 0:00:25]} O-O {[%emt 0:04:36]} 6. b3 {[%emt 0:00:05]} d4 {[%emt 0:05:09]} 7. e3 {[%emt 0:01:01]} c5 {[%emt 0:00:06]} 8. Ne5 {[%emt 0:03:35]} Qc7 {[%emt 0:04:32]} 9. f4 {[%emt 0:00:21]} Nbd7 {[%emt 0:03:33]} 10. Nf3 {[%emt 0:06:58]} e5 {[%emt 0:18:58]} 11. Bb2 {[%emt 0:02:13]} exf4 {[%emt 0:02:23]} 12. exf4 {[%emt 0:03:15]} Rb8 {[%emt 0:03:48]} 13. Re1 {[%emt 0:05:28]} Re8 {[%emt 0:00:13]} 14. d3 {[%emt 0:01:54]} b6 {[%emt 0:01:20]} 15. Nbd2 {[%emt 0:05:56]} Bb7 {[%emt 0:00:33]} 16. Qc2 {[%emt 0:02:52]} Ng4 {[%emt 0:03:55]} 17. Nf1 {[%emt 0:01:02]} Bd6 {[%emt 0:06:46]} 18. Re2 {[%emt 0:11:06]} Rxe2 {[%emt 0:07:18]} 19. Qxe2 {[%emt 0:00:08]} Ndf6 {[%emt 0:00:02]} 20. Re1 {[%emt 0:02:09]} Bc6 {[%emt 0:01:26]} 21. h3 {[%emt 0:04:27]} Nh6 {[%emt 0:00:35]} 22. Bc1 {[%emt 0:01:47]} Nf5 {[%emt 0:04:18]} 23. g4 {[%emt 0:14:32]} Bxf3 {[%emt 0:05:46]} 24. Bxf3 {[%emt 0:01:29]} Nh4 {[%emt 0:00:07]} 25. Qf2 {[%emt 0:01:40]} Ng6 {[%emt 0:05:15]} 26. g5 {[%emt 0:01:40]} Nd7 {[%emt 0:00:19]} 27. f5 {[%emt 0:09:33]} Nf4 {[%emt 0:00:05]} 28. Bxf4 {[%emt 0:04:45]} Bxf4 {[%emt 0:00:05]} 29. h4 {[%emt 0:02:58]} h6 {[%emt 0:05:17]} 30. Bd5 {[%emt 0:03:34]} hxg5 {[%emt 0:00:16]} 31. Re7 {[%emt 0:00:11]} Rf8 {[%emt 0:00:06]} 32. Qe2 {[%emt 0:00:16]} Bd6 {[%emt 0:02:02]} 33. Rxf7 {[%emt 0:05:06]} Rxf7 {[%emt 0:00:04]} 34. hxg5 {[%emt 0:07:56]} Kf8 {[%emt 0:02:21]} 35. Qe6 {[%emt 0:00:47]} Ne5 {[%emt 0:03:30]} 36. g6 {[%emt 0:00:11]} Nf3+ {[%emt 0:08:19]} 37. Bxf3 {[%emt 0:00:14]} Re7 {[%emt 0:00:16]} 38. Qd5 {[%emt 0:00:28]} Re5 {[%emt 0:00:31]} 39. Qa8+ {[%emt 0:00:07]} Qb8 {[%emt 0:01:18]} 40. Qxb8+ {[%emt 0:03:02]} Bxb8 {[%emt 0:00:05]} 41. Be4 {[%emt 0:50:57]} Re8 {[%emt 0:05:19]} 42. Kg2 {[%emt 0:00:00]} Ke7 {[%emt 0:00:24]} 43. Kf3 {[%emt 0:00:00]} Rh8 {[%emt 0:01:36]} 44. Kg4 {[%emt 0:00:00]} Be5 {[%emt 0:05:05]} 45. Kg5 {[%emt 0:00:00]} Bf6+ {[%emt 0:01:29]} 46. Kg4 {[%emt 0:00:00]} Rh4+ {[%emt 0:00:19]} 47. Kg3 {[%emt 0:00:00]} Rh5 {[%emt 0:00:37]} 48. Kg4 {[%emt 0:00:00]} Rg5+ {[%emt 0:01:59]} 49. Kf3 {[%emt 0:00:00]} Be5 {[%emt 0:00:28]} 50. Kf2 {[%emt 0:00:00]} Bf4 {[%emt 0:01:21]} 51. Kf3 {[%emt 0:00:00]} Rg1 {[%emt 0:00:19]} 52. Kf2 {[%emt 0:00:00]} Rg4 {[%emt 0:00:17]} 53. Kf3 {[%emt 0:00:00]} Rh4 {[%emt 0:00:08]} 54. Kg2 {[%emt 0:00:00]} Kf6 {[%emt 0:00:09]} 55. Kf3 {[%emt 0:00:00]} Ke5 {[%emt 0:00:15]} 56. Kg2 {[%emt 0:00:00]} a6 {[%emt 0:02:33]} 57. a4 {[%emt 0:00:00]} Rh5 {[%emt 0:00:56]} 58. Kf2 {[%emt 0:00:00]} Rxf5 {[%emt 0:05:10]} 59. Bxf5 {[%emt 0:00:00]} Kxf5 {[%emt 0:00:02]} 60. a5 {[%emt 0:00:00]} bxa5 {[%emt 0:00:02]} 61. Kf3 {[%emt 0:00:00]} a4 {[%emt 0:00:04]} 62. bxa4 {[%emt 0:00:00]} a5 {[%emt 0:00:03]} 63. Ng3+ {[%emt 0:00:00]} Bxg3 {[%emt 0:00:05]} 64. Kxg3 {[%emt 0:00:00]} Kxg6 {[%emt 0:00:08]} 65. Kf4 {[%emt 0:00:00]} Kf6 {[%emt 0:00:26]} 66. Ke4 {[%emt 0:00:00]} g5 {[%emt 0:00:11]} 67. Kd5 {[%emt 0:00:00]} g4 {[%emt 0:00:06]} 68. Ke4 {[%emt 0:00:00]} Kg5 {[%emt 0:00:03]} 0-1

[Event "4NCL 2023-2024"]
[Site "Daventry"]
[Date "2024.05.05"]
[Round "10.37"]
[White "Badacsonyi, Stanley"]
[Black "Slaby, Jerzy"]
[Result "0-1"]
[ECO "D00"]
[WhiteElo "2156"]
[BlackElo "2465"]
[Annotator "TA"]
[PlyCount "62"]
[EventDate "2023.11.11"]
[EventType "team-tourn"]
[EventCountry "ENG"]
[SourceTitle "playchess.com"]
[Source "ChessBase"]
[SourceQuality "1"]
[TimeControl "40/6000+30:3000+30"]

{[%evp 9,62,0,0,0,0,0,0,0,0,0,0,-11,14,0,19,22,26,-27,6,-141,-128,-136,-137,-132,-132,-150,-127,-148,-145,-134,-28,-41,-22,-22,-18,-17,-17,-30,-23,-32,-17,-89,-82,-120,-106,-300,-311,-305,-303,-317,-299,-310,-302,-435,-407]} 1. d4 {[%emt 0:00:02]} g6 {[%emt 0:00:41]} 2. Nc3 {[%emt 0:00:28]} d5 {[%emt 0:01:49]} 3. Bf4 {[%emt 0:00:19]} Bg7 {[%emt 0:02:12]} 4. e3 {[%emt 0:01:26]} Nf6 {[%emt 0:01:03]} 5. h4 {[%emt 0:00:05]} h5 {[%emt 0:05:28]} 6. Nf3 {[%emt 0:00:04]} O-O {[%emt 0:00:35][%cal Oc7c5]} 7. Ne5 {[%emt 0:00:05]} c5 {[%emt 0:01:09]} 8. Qd2 {[%emt 0:00:05] The position is equal.} Be6 {[%emt 0:09:48]} 9. f3 {[%emt 0:02:26]} a6 {[%emt 0:05:14]} 10. Rd1 {[%emt 0:04:54]} c4 {[%emt 0:07:35]} 11. b3 {[%emt 0:06:20]} cxb3 {[%emt 0:12:57]} 12. cxb3 {[%emt 0:04:26]} Nbd7 {[%emt 0:00:06]} 13. b4 {[%emt 0:10:48]} ({White should play} 13. Kf2) 13... a5 {[%emt 0:04:22]} 14. Na4 {[%emt 0:03:17]} (14. Nxd7 $11 {keeps the balance.} Bxd7 (14... Nxd7 15. Nb5 $11) (14... Qxd7 15. b5 $11) 15. b5) 14... axb4 $17 {[%emt 0:00:26]} 15. Qxb4 {[%emt 0:00:06] [#]} Qa5 $1 {[%emt 0:00:28]} 16. Qxa5 {[%emt 0:00:06]} Rxa5 {[%emt 0:00:02]} 17. Nc3 {[%emt 0:00:07]} Rc8 {[%emt 0:02:49]} 18. Kd2 {[%emt 0:00:21]} Ra3 {[%emt 0:06:22]} 19. Rc1 {[%emt 0:00:40]} Nb6 {[%emt 0:04:54]} (19... Nxe5 $17 20. Bxe5 Bh6) 20. Bd3 {[%emt 0:04:30]} Ne8 {[%emt 0:01:19][%cal Bf6e8,Be8d6,Bd6c4][%mdl 32]} 21. Rc2 {[%emt 0:02:49]} Nd6 $36 {[%emt 0:00:49][%mdl 2048] White is under pressure.} 22. Rb1 {[%emt 0:03:45]} Bxe5 {[%emt 0:07:16]} 23. dxe5 {[%emt 0:02:38]} Ndc4+ {[%emt 0:00:37] Excellent horsemanship.} 24. Ke2 {[%emt 0:00:32]} Nd7 {[%emt 0:03:18]} 25. Bxc4 {[%emt 0:07:12]} (25. Rb5 $11 {remains equal.} Ncxe5 26. Nxd5 Rxc2+ 27. Bxc2) 25... Rxc4 {[%emt 0:00:52]} 26. Rb3 {[%emt 0:00:08]} Ra8 {[%emt 0:01:42] And now ...Nc5 would win. Black is more active.} 27. Kd2 $2 {[%emt 0:05:10] [#] This costs White the game.} (27. Rxb7 $2 {too greedy.} Rac8 28. Kd2 d4 29. exd4 Rxd4+ 30. Ke3 Rdc4 $19) (27. Rbb2 $17) 27... d4 $19 {[%emt 0:02:12]} 28. exd4 {[%emt 0:01:29]} Rxd4+ {[%emt 0:00:02]} 29. Ke3 {[%emt 0:00:15]} Bxb3 {[%emt 0:00:02]} 30. axb3 {[%emt 0:00:07]} Rb4 {[%emt 0:00:19]} 31. e6 {[%emt 0:01:11]} (31. Nd5 {was worth a try.} Rb5 (31... Rxb3+ $2 32. Kf2 $19) 32. Nxe7+ Kf8 33. Nc8) 31... Nf6 {[%emt 0:01:47] Weighted Error Value: White=0.41/Black=0.13 (very precise) .  Loses game:     	White=1     	---        Mistake:       	White=4     	Black=1      Inaccurate:     	White=1     	Black=1      OK:         	White=7     	Black=12     Best:        	White=1     	Black=2      Strong:       	---       	Black=1} 0-1

[Event "4NCL 2023-2024"]
[Site "Daventry"]
[Date "2024.05.05"]
[Round "10.38"]
[White "Garcia Martin, Marta"]
[Black "Mirzoeva, Elmira"]
[Result "0-1"]
[ECO "B11"]
[WhiteElo "2342"]
[BlackElo "2252"]
[Annotator "TA"]
[PlyCount "76"]
[EventDate "2023.11.11"]
[EventType "team-tourn"]
[EventCountry "ENG"]
[SourceTitle "playchess.com"]
[Source "ChessBase"]
[SourceQuality "1"]
[TimeControl "40/6000+30:3000+30"]

{[%evp 24,76,42,40,33,31,31,25,44,12,11,0,0,0,0,-8,0,-7,216,109,243,216,240,236,220,191,214,162,193,65,57,-227,-231,-417,-242,-208,0,-318,-400,-1033,-970,-852,-754,-1969,-1732,-29954,-1922,-1297,-2166,-2206,-2277,-3043,-2401,-29941,-7288]} 1. e4 {[%emt 0:00:09]} c6 {[%emt 0:00:07]} 2. Nf3 {[%emt 0:00:17]} d5 {[%emt 0:00:18]} 3. Nc3 {[%emt 0:00:05]} Nf6 {[%emt 0:00:29]} 4. e5 {[%emt 0:00:26]} Ne4 {[%emt 0:00:19]} 5. Ne2 {[%emt 0:00:31]} Qb6 {[%emt 0:00:39]} 6. d4 {[%emt 0:00:07] B11: Caro-Kann: Two Knights Variation.} e6 {[%emt 0:00:41] 6...e6 has become a bit dusty these days.} 7. Ng3 {[%emt 0:00:38]} c5 {[%emt 0:05:28]} 8. Bd3 {[%emt 0:00:25]} Nc6 {[%emt 0:04:08]} 9. Nxe4 {[%emt 0:01:34]} dxe4 {[%emt 0:00:11]} 10. Bxe4 {[%emt 0:00:05]} Nxd4 {[%emt 0:03:47]} 11. Nxd4 {[%emt 0:25:17]} cxd4 {[%emt 0:00:07]} 12. O-O {[%emt 0:00:04]} Bd7 {[%emt 0:12:24]} 13. Qg4 $146 {[%emt 0:18:30]} ({Predecessor:} 13. Qf3 Bc6 14. Bxc6+ Qxc6 15. Qxc6+ bxc6 16. Rd1 Rd8 17. f4 Bc5 18. Kf2 d3+ 19. Be3 Bxe3+ 20. Kxe3 dxc2 {1-0 Chen,Q (2493)-Leeb,S (2207) FIDE World Uni Rapid-D 1st 2021 (9)}) 13... g6 {[%emt 0:14:05]} 14. a4 {[%emt 0:06:28]} a5 {[%emt 0:13:19]} 15. Bg5 {[%emt 0:24:17]} Bg7 {[%emt 0:18:36]} 16. Qf4 {[%emt 0:11:17]} Bc6 {[%emt 0:18:08]} 17. Bxc6+ {[%emt 0:06:06]} bxc6 {[%emt 0:00:29]} 18. Ra3 {[%emt 0:06:40]} Qc5 {[%emt 0:03:03]} 19. Re1 {[%emt 0:05:27]} Rb8 {[%emt 0:01:19]} 20. Rf3 {[%emt 0:01:02]} Rf8 $2 {[%emt 0:00:24] [#]} (20... O-O $11) 21. b3 {[%emt 0:00:57]} (21. Rd3 $1 $18 {[%cal Rd3d4]} h6 22. Bf6 (22. Bxh6 Bxh6 23. Qxh6 Rxb2 $14) 22... Bxf6 23. exf6 (23. Qxf6 Qd5 $14)) 21... Rb4 {[%emt 0:02:39] [#]} (21... Rb7 $16 {is a better defense.}) 22. Rd3 $1 $18 {[%emt 0:00:28]} h6 {[%emt 0:10:50]} 23. Bf6 {[%emt 0:00:09]} (23. Bxh6 Bxh6 24. Qxh6 Qxc2 $14) 23... Bxf6 {[%emt 0:00:00]} 24. exf6 {[%emt 0:00:06]} (24. Qxf6 Qxc2 25. Red1 Qe2 $15 (25... Rxb3 $2 26. Rxd4 $18) (25... c5 26. Qf3 $11)) 24... Kd7 {[%emt 0:00:00]} (24... Qxc2 25. Qc7 (25. Rxd4 Qc3 $18) (25. Rxd4 Qc3 $18)) 25. c4 {[%emt 0:01:20]} Kc8 {[%emt 0:00:00]} 26. Re5 {[%emt 0:00:21]} (26. Rxd4 $18 {aiming for Red1.} Rxb3 27. Qxh6) 26... Qxc4 $14 {[%emt 0:00:00]} 27. Rd1 $2 {[%emt 0:00:41][%mdl 8192]} (27. Rxa5 g5 (27... Qxd3 $2 28. h3 $18) 28. h4 (28. bxc4 $2 Rb1+) (28. Ra8+ $2 Kb7 $19) 28... gxf4 $11 (28... Qxd3 29. Qd6 Qc3 30. Qxf8+ Kc7 31. Ra7+ Rb7 32. Qe7+ Kb6 33. Rxb7+ Ka6 34. Ra7+ Kb6 35. a5+ Kb5 36. Rb7+ Ka6 37. Rb6+ Kxa5 38. Qa7#)) (27. Qxh6 $2 Rd8 28. Qd2 (28. bxc4 Rb1+) 28... Rxb3 29. Rxb3 Qxb3 $19) (27. h3 $1 $14 {keeps the upper hand.} Qa6 (27... Qxd3 $2 28. Rxa5 Qd1+ 29. Kh2 $16) 28. Rxd4 Rxd4 29. Qxd4) 27... Qxb3 $19 {[%emt 0:00:00]} (27... Rxb3 28. Rxa5 Kb7 29. Qd6 $14 (29. Rxd4 $2 Rb1+) (29. Qxh6 $2 Qb4 $19)) 28. Rde1 $2 {[%emt 0:00:30]} (28. Rc1 {was worth a try.} Rc4 (28... Rxa4 29. Rec5 Kd7 30. Rxc6) 29. Rf1 (29. Rxa5 $2 g5 $19)) 28... Rd8 {[%emt 0:00:35]} (28... Rxa4 $2 29. Rc5 Kb7 30. Rec1 $19) (28... d3 $142 29. Qe3 Rd8 (29... Qxa4 30. Qxd3 Rd8 31. Qa6+ Kc7 32. g3 $15) (29... Rxa4 $2 30. Qc5 $18) 30. Rxa5 Rdd4 (30... Rxa4 $2 31. Rc5 $19)) 29. Rxa5 $19 {[%emt 0:00:29]} Kb7 $2 {[%emt 0:00:34]} (29... Rxa4 30. Rc1 Rd7 (30... Rxa5 31. Rxc6+ Kb7 32. Qc7+ Ka8 33. Qxa5+ Kb8 34. Qc7+ Ka8 35. Ra6#) 31. Rac5 $17) (29... d3 $19 30. Ra8+ Kb7 31. Ra7+ Kxa7 32. Qc7+ Ka6 33. Qxd8 Qc3 (33... Qxa4 34. Qxd3+ Rb5 35. g3 $16) (33... Qd5 34. Qa8+ Kb6 35. Qb8+ Kc5 36. Rc1+ Rc4 37. Qa7+ Kd6 38. Re1 $11)) 30. Rc5 $2 {[%emt 0:00:28][%mdl 8192]} (30. Ra7+ $1 $11 {and White stays safe.} Kxa7 31. Qc7+ Ka6 32. Qxd8) 30... d3 $19 {[%emt 0:00:46]} (30... Rxa4 $2 31. Qe4 Ka7 32. Qxc6 $18 (32. Rxc6 d3 $18)) (30... Qxa4 31. Qd2) 31. Qf3 {[%emt 0:00:05]} (31. Qd2 $142) 31... Rd5 $19 {[%emt 0:00:06]} 32. Rxd5 {[%emt 0:00:31]} Qxd5 {[%emt 0:00:08]} 33. Qd1 {[%emt 0:00:32]} d2 {[%emt 0:00:24]} 34. Re2 {[%emt 0:00:07]} Rb2 {[%emt 0:00:38]} (34... Qd3 $142 35. Rxd2 Qxd2 36. Qf1 Qc2 (36... Rxa4 $2 37. g3 $19) 37. h3 Rb1 (37... Qxa4 $2 38. Kh2 $19) 38. g4 c5 (38... Rxf1+ {leads to mate.} 39. Kxf1 c5 40. Kg2 c4 41. Kf3 Qd3+ 42. Kg2 c3 43. h4 c2 44. a5 c1=Q 45. a6+ Kxa6 46. f3 Qdf1+ 47. Kg3 Qg1+ 48. Kh3 Qcf1#) (38... Qd3 {is a self mate.} 39. Qxb1+ Qxb1+ 40. Kg2 c5 41. g5 hxg5 42. Kh2 c4 43. Kg3 c3 44. Kg4 Qg1+ 45. Kf3 c2 46. Ke4 c1=Q 47. a5 Qg2+ 48. Kd3 Qf3+ 49. Kd4 Qd5#) 39. Kg2 Rxf1 40. Kxf1 c4 (40... Qxa4 41. Kg1 c4 42. Kf1 c3 43. Ke2 Qe4+ 44. Kd1 Qd3+ 45. Ke1 c2 46. f3 c1=Q+ 47. Kf2 Qdd2+ 48. Kg3 Qce1#) 41. Kg2 c3 (41... Qxa4 {gets mated.} 42. Kf3 c3 43. Ke2 Qd4 44. Kf3 c2 45. Kg2 c1=Q 46. g5 Qe4+ 47. f3 Qe2+ 48. Kg3 Qxg5#) 42. h4 Qxa4 43. h5 c2 (43... Qxg4+ 44. Kh2 c2 45. f3 Qh4+ 46. Kg2 c1=Q 47. hxg6 Qch1#) 44. Kh3 c1=Q (44... c1=B 45. hxg6 Qe4 46. Kh2 Bg5 47. Kg1 Qf3 48. gxf7 Bh4 49. f8=Q Bxf2+ 50. Kf1 Bd4+ 51. Ke1 Bc3#) 45. f3 Qaf4 46. Kg2 Qc2+ 47. Kh3 Qfh2#) 35. h4 {[%emt 0:00:19]} c5 {[%emt 0:01:07]} 36. Kh2 {[%emt 0:00:20]} c4 {[%emt 0:00:08]} 37. Re3 {[%emt 0:00:17]} Qd4 {[%emt 0:00:35]} 38. a5 {[%emt 0:00:50]} c3 {[%emt 0:00:36]} 0-1